bitfinex/quotes_ETHUSD_20241001
["timestamp","ask_amount","ask_price","bid_price","bid_amount"]
[1727742994891,0.7545,2615.8,2615.0,0.271]
[1727742994892,3.82366,2615.3,2615.0,0.271]
[1727742995125,7.64743,2615.3,2615.0,0.271]
[1727742995507,3.82394,2615.1,2614.6,0.271]
[1727742995692,3.82373,2615.3,2614.6,0.271]
[1727742995906,3.82372,2615.3,2614.6,0.271]
[1727742996104,3.82372,2615.3,2614.7,3.82452]
[1727742996303,3.82381,2615.2,2614.7,3.82452]
[1727742996487,3.82394,2615.1,2614.6,0.680569]
[1727742996701,3.82394,2615.1,2614.6,0.271]
[1727742996923,3.82427,2614.9,2614.6,0.271]
[1727742997602,7.64801,2615.1,2614.6,0.271]
[1727742997803,1.19708538,2615.3,2614.7,3.82439]
[1727742997804,5.02082538,2615.3,2614.7,3.82439]
[1727742998018,3.82417,2615.0,2614.6,0.271]
[1727742998222,3.82417,2615.0,2614.6,3.271]
[1727742999018,3.82395,2615.1,2614.6,3.271]
[1727742999179,3.8241,2615.0,2614.6,3.271]
[1727742999896,3.82395,2615.1,2614.6,3.271]
[1727743000099,5.02080538,2615.3,2614.6,0.980572]
[1727743000287,1.19708538,2615.3,2614.8,3.82433]
[1727743000616,12.76952384,2615.5,2614.8,3.82433]
[1727743000617,1.19708538,2615.4,2614.8,3.82433]
[1727743001126,5.02049538,2615.5,2615.1,0.271]
[1727743001473,3.82341,2615.5,2615.1,0.271]
[1727743001923,3.82358,2615.4,2615.1,0.271]
[1727743002232,3.82382,2615.2,2614.8,0.271]
[1727743002516,3.82382,2615.2,2614.8,1.363017]
[1727743002679,3.82352,2615.4,2614.9,3.0]
[1727743003084,5.02036538,2615.6,2614.9,3.0]
[1727743003400,3.8234,2615.5,2615.2,0.271]
[1727743003580,3.82328,2615.6,2615.2,0.271]
[1727743003784,3.82328,2615.6,2615.2,0.980497]
[1727743004387,1.19708538,2615.7,2615.3,3.0]
[1727743004586,5.41912384,2615.8,2615.3,3.0]
[1727743004587,5.02009538,2615.8,2615.3,6.82365]
[1727743004885,8.84310538,2615.8,2615.3,3.0]
[1727743005220,5.02009538,2615.8,2615.3,3.0]
[1727743005436,1.19708538,2615.8,2615.4,0.7804287]
[1727743005731,3.82293,2615.8,2615.4,0.7804287]
[1727743006639,1.19708538,2616.0,2615.7,3.0]
[1727743006862,5.01918538,2616.4,2615.9,3.0]
[1727743007153,1.19708538,2616.4,2616.0,0.7170284]
[1727743007365,3.82148,2616.8,2616.4,0.271]
[1727743007533,8.94611384,2617.0,2616.4,0.271]
[1727743007534,1.19708538,2617.0,2616.4,0.271]
[1727743007726,3.82156,2616.8,2616.4,0.271]
[1727743008218,1.19708538,2617.1,2616.4,0.271]
[1727743008418,5.01790538,2617.3,2616.8,0.271]
[1727743008642,3.82082,2617.3,2616.8,0.271]
[1727743008825,5.01757538,2617.5,2617.0,3.0]
[1727743009134,1.19708538,2618.2,2617.8,3.81986]
[1727743009330,1.19708538,2618.8,2618.4,3.271]
[1727743009630,7.35,2619.6,2618.6,3.0]
[1727743009963,2.37181384,2619.8,2618.7,0.38399847]
[1727743009964,3.81799,2619.2,2618.7,0.38399847]
[1727743010162,0.7757,2619.8,2618.4,3.271]
[1727743010163,3.81812,2619.1,2618.4,3.271]
[1727743010314,3.81842,2618.9,2618.4,0.271]
[1727743010516,3.9470259,2619.5,2618.4,3.271]
[1727743010517,3.8181,2619.1,2618.4,3.271]
[1727743010792,3.81868,2618.8,2618.4,0.271]
[1727743010975,0.38181,2619.1,2618.4,0.271]
[1727743010976,3.81872,2618.7,2618.4,0.271]
[1727743011258,3.81852,2618.9,2618.1,0.271]
[1727743011429,3.81823,2619.1,2618.4,3.0]
[1727743011751,3.81823,2619.1,2618.3,3.81923]
[1727743011752,3.81837,2619.0,2618.3,3.0]
[1727743011951,4.199953,2619.1,2618.1,3.271]
[1727743012154,0.8332,2618.9,2618.1,0.271]
[1727743012344,3.81856,2618.8,2618.1,0.271]
[1727743012541,3.81895,2618.6,2618.1,0.271]
[1727743012852,0.465176,2618.7,2617.7,0.271]
[1727743013058,3.81896,2618.6,2617.7,0.271]
[1727743013262,3.81929,2618.3,2617.7,0.271]
[1727743013450,3.81943,2618.2,2617.7,0.271]
[1727743014279,0.763855,2618.2,2617.3,0.271]
[1727743014466,3.81924,2618.4,2617.5,3.82041]
[1727743014669,3.81956,2618.1,2617.3,4.09166]
[1727743014840,3.81956,2618.1,2617.3,0.271]
[1727743015019,3.81987,2617.9,2617.3,0.271]
[1727743015627,3.9470259,2618.5,2617.3,0.271]
[1727743015628,3.81959,2618.1,2617.3,0.271]
[1727743015838,3.82034,2617.6,2617.3,0.271]
[1727743016060,3.82046,2617.5,2616.6,3.82172]
[1727743016265,3.82,2617.8,2617.0,0.271]
[1727743016464,3.82,2617.8,2617.0,4.09215]
[1727743016770,3.82,2617.8,2617.1,0.48562677]
[1727743017181,3.82015,2617.7,2617.1,3.48562677]
[1727743017469,3.82039,2617.6,2617.1,0.409215]
[1727743017667,8.530259,2618.1,2617.0,0.271]
[1727743017668,3.82055,2617.5,2617.0,0.271]
[1727743018399,3.82027,2617.7,2617.0,0.271]
[1727743018566,3.82027,2617.7,2617.1,3.07641116]
[1727743018770,3.8201,2617.8,2617.3,3.0]
[1727743019286,3.81991,2617.9,2617.3,3.0]
[1727743019460,3.82028,2617.7,2617.1,3.07640536]
[1727743019661,3.82029,2617.6,2617.2,0.71685354]
[1727743019959,3.82029,2617.6,2617.0,4.09213]
[1727743019960,3.82054,2617.5,2617.0,0.271]
[1727743020187,3.82087,2617.3,2617.0,0.271]
[1727743020385,12.4772849,2618.1,2616.2,3.8222]
[1727743020386,3.9470259,2617.4,2616.2,3.8222]
[1727743020589,3.9470259,2617.4,2616.1,0.271]
[1727743020590,3.82162,2616.7,2616.1,4.09344]
[1727743020806,3.82162,2616.7,2616.2,0.791601]
[1727743021112,3.9470259,2617.0,2616.2,0.791601]
[1727743021113,3.82179,2616.6,2616.2,0.791601]
[1727743021292,0.7635,2617.4,2616.1,0.271]
[1727743021293,3.82226,2616.3,2616.1,0.271]
[1727743021457,3.9470259,2616.7,2616.1,0.271]
[1727743021458,3.82194,2616.5,2616.1,0.271]
[1727743021896,7.64396,2616.5,2616.1,0.271]
[1727743022104,3.82205,2616.4,2616.1,0.271]
[1727743022401,3.82233,2616.2,2615.6,4.09419]
[1727743022704,3.82229,2616.3,2615.7,0.79175]
[1727743023001,3.82229,2616.3,2615.8,0.07644469]
[1727743023204,3.82229,2616.3,2615.7,4.61478]
[1727743023357,3.82195,2616.5,2615.8,3.07644465]
[1727743023560,3.82195,2616.5,2615.9,4.59187246]
[1727743023860,3.82195,2616.5,2616.0,3.0]
[1727743024459,7.7686959,2616.7,2616.0,3.07644465]
[1727743024460,3.82164,2616.7,2616.0,3.07644465]
[1727743024687,3.9470259,2617.3,2616.3,0.271]
[1727743024900,0.7635,2617.4,2615.9,0.271]
[1727743024901,3.82204,2616.4,2615.9,0.271]
[1727743025198,3.9470259,2616.7,2615.9,0.271]
[1727743025199,3.8225,2616.1,2615.9,0.271]
[1727743025434,3.82243,2616.2,2615.9,0.271]
[1727743025624,12.1090259,2616.7,2615.4,0.271]
[1727743025625,3.8227,2616.0,2615.4,0.271]
[1727743025832,8.162,2616.7,2615.4,0.271]
[1727743025833,7.64484,2616.2,2615.5,3.89973015]
[1727743025985,3.8224,2616.2,2615.7,3.82306]
[1727743026183,3.82177,2616.6,2615.9,3.82275]
[1727743026531,3.82177,2616.6,2615.8,0.07645138]
[1727743026532,3.82214,2616.4,2615.8,0.07644406]
[1727743026691,8.162,2616.7,2615.9,3.82274]
[1727743026692,7.6437,2616.6,2615.9,3.82274]
[1727743026890,7.6437,2616.6,2616.1,0.271]
[1727743027129,3.82181,2616.6,2616.1,0.271]
[1727743027328,3.82191,2616.5,2616.1,0.271]
[1727743027998,3.82191,2616.5,2616.1,0.98801849]
[1727743028184,3.82161,2616.7,2616.2,0.076444]
[1727743028398,15.58898849,2617.2,2615.7,0.77227902]
[1727743028399,3.82233,2616.2,2615.7,0.77227902]
[1727743028634,3.82233,2616.2,2615.0,7.7236]
[1727743028635,3.82322,2615.6,2615.0,0.271]
[1727743028795,0.7537,2616.7,2615.0,0.271]
[1727743028796,4.7007259,2615.9,2615.0,0.271]
[1727743029199,3.82369,2615.3,2615.0,0.271]
[1727743029408,4.7007259,2615.9,2615.0,0.271]
[1727743029409,3.82342,2615.5,2615.0,0.271]
[1727743029824,3.82314,2615.7,2615.0,0.7646296]
[1727743030225,3.82324,2615.6,2615.0,0.68816245]
[1727743030451,0.7537,2615.9,2615.0,0.68816245]
[1727743030617,3.82359,2615.4,2615.0,0.271]
[1727743030946,3.82381,2615.2,2615.0,0.271]
[1727743031111,3.82327,2615.6,2615.0,0.271]
[1727743031841,3.82327,2615.6,2615.1,3.82392]
[1727743032138,3.82295,2615.8,2615.2,3.409492]
[1727743032440,3.82297,2615.8,2615.2,0.409492]
[1727743032614,3.82308,2615.7,2615.2,3.48596161]
[1727743033236,3.82321,2615.6,2615.2,3.409492]
[1727743033540,3.82297,2615.8,2615.2,3.409492]
[1727743033746,3.82297,2615.8,2615.3,1.1133709]
[1727743034450,3.82242,2616.2,2615.5,0.271]
[1727743034603,3.82242,2616.2,2615.6,3.07645489]
[1727743034837,3.8221,2616.4,2615.6,3.07645489]
[1727743035114,20.47685216,2618.6,2615.6,3.07645489]
[1727743035115,3.82083,2617.3,2616.3,0.271]
[1727743035418,0.7541,2617.9,2616.6,3.0]
[1727743035419,3.82093,2617.2,2616.6,3.0]
[1727743035617,0.7541,2617.9,2616.8,3.0]
[1727743035618,7.7674259,2617.6,2616.8,3.0]
[1727743035809,7.7674259,2617.6,2616.8,3.98979136]
[1727743035810,3.82045,2617.5,2616.8,3.98979136]
[1727743036309,3.82045,2617.5,2616.8,4.06621234]
[1727743037465,3.8204,2617.6,2616.9,4.09227]
[1727743037665,3.8204,2617.6,2616.9,0.34742093]
[1727743037820,3.8204,2617.6,2616.9,1.16329116]
[1727743038249,0.7541,2617.9,2616.9,0.34742093]
[1727743038450,3.82068,2617.4,2616.9,0.271]
[1727743039166,3.821,2617.2,2616.6,3.0]
[1727743039458,3.82073,2617.3,2616.8,3.0]
[1727743039819,3.82097,2617.2,2616.8,3.0]
[1727743040018,3.82108,2617.1,2616.5,0.271]
[1727743040224,3.82134,2616.9,2616.5,0.271]
[1727743040601,7.64223,2617.1,2616.5,0.271]
[1727743040720,3.82109,2617.1,2616.5,4.0928]
[1727743041376,3.82109,2617.1,2616.6,3.0]
[1727743041666,3.82081,2617.3,2616.7,7.71944123]
[1727743041833,3.82081,2617.3,2616.7,7.64302]
[1727743042569,11.17049,2617.5,2616.8,3.82137]
[1727743042570,3.82063,2617.4,2616.8,3.82137]
[1727743042868,3.82063,2617.4,2616.7,4.912902]
[1727743042869,7.35,2617.5,2617.1,3.0]
[1727743043022,13.1982,2617.9,2617.0,3.82108]
[1727743043023,4.57815,2617.9,2617.0,3.0]
[1727743043226,19.78,2618.9,2617.4,6.82054]
[1727743043227,3.81964,2618.1,2617.4,6.82054]
[1727743043437,3.81964,2618.1,2617.5,0.682054]
[1727743043723,0.7806,2618.5,2617.5,3.0]
[1727743043923,0.7806,2618.5,2617.1,0.271]
[1727743043924,3.82025,2617.7,2617.1,0.271]
[1727743044151,3.82025,2617.7,2617.1,3.271]
[1727743044377,3.82001,2617.8,2617.2,3.82082]
[1727743044610,3.82001,2617.8,2617.3,3.0]
[1727743044796,3.82028,2617.7,2617.1,3.271]
[1727743044962,3.81976,2618.0,2617.1,0.271]
[1727743045164,3.82037,2617.6,2617.1,0.271]
[1727743045777,0.8123,2617.9,2616.6,0.271]
[1727743045778,3.82059,2617.4,2616.6,0.271]
[1727743046012,3.82059,2617.4,2616.8,3.0]
[1727743046151,3.82059,2617.4,2616.8,6.82144]
[1727743046356,3.82059,2617.4,2616.9,1.07194587]
[1727743046591,3.82059,2617.4,2616.8,3.0]
[1727743046794,3.82096,2617.2,2616.8,3.0]
[1727743047293,3.82007,2617.8,2616.6,0.271]
[1727743047294,3.82125,2617.0,2616.6,3.271]
[1727743047494,3.8216,2616.7,2616.2,0.271]
[1727743047855,7.64275,2616.9,2616.2,4.09329]
[1727743048127,3.8211,2617.1,2616.2,0.3474377]
[1727743048451,3.8211,2617.1,2616.5,3.82176]
[1727743048656,3.8211,2617.1,2616.6,6.82175]
[1727743048884,7.35,2617.2,2616.6,6.89817719]
[1727743049199,7.35,2617.2,2616.8,0.271]
[1727743049498,7.64165,2617.3,2616.8,0.271]
[1727743050177,3.82051,2617.5,2616.8,4.09237]
[1727743050379,3.82051,2617.5,2616.9,0.409237]
[1727743050693,3.82075,2617.3,2616.9,0.409237]
[1727743051699,3.82075,2617.3,2616.8,0.271]
[1727743051908,7.64157,2617.3,2616.8,0.271]
[1727743052110,7.64157,2617.3,2616.8,3.271]
[1727743052406,3.82088,2617.2,2616.8,0.271]
[1727743053170,3.82052,2617.5,2616.9,3.07642309]
[1727743053413,11.1702,2617.7,2617.1,3.0]
[1727743053719,11.1702,2617.7,2617.1,6.82091]
[1727743053720,3.8202,2617.7,2617.1,6.82091]
[1727743054081,3.81992,2617.9,2617.3,3.271]
[1727743054299,4.38834275,2618.5,2617.4,4.61379145]
[1727743054300,3.8198,2618.0,2617.4,4.61379145]
[1727743054479,0.7729,2618.4,2617.5,3.0]
[1727743054678,3.82014,2617.8,2617.3,0.271]
[1727743055081,3.82019,2617.7,2617.3,3.271]
[1727743055499,7.64045,2617.7,2617.3,3.271]
[1727743055701,3.8203,2617.6,2617.3,0.271]
[1727743055894,3.82019,2617.7,2617.3,0.271]
[1727743056080,3.82045,2617.5,2617.3,0.271]
[1727743056517,3.82045,2617.5,2617.0,0.271]
[1727743056889,3.82075,2617.3,2617.0,0.271]
[1727743057090,3.82075,2617.3,2616.7,0.271]
[1727743057414,3.82139,2616.9,2616.7,0.271]
[1727743057726,3.82139,2616.9,2616.4,0.271]
[1727743058082,3.82111,2617.1,2616.4,0.271]
[1727743058083,3.8217,2616.7,2616.4,0.271]
[1727743058285,0.8132,2617.1,2615.8,3.82283]
[1727743058286,3.8212,2617.0,2616.1,0.271]
[1727743058591,0.8132,2617.1,2616.1,0.271]
[1727743058592,3.82177,2616.6,2616.1,0.271]
[1727743058792,3.82177,2616.6,2616.1,0.68800545]
[1727743059219,3.82172,2616.7,2616.1,0.68800545]
[1727743059220,0.8132,2617.1,2616.1,0.76444873]
[1727743059383,0.8132,2617.1,2616.1,0.34744328]
[1727743059584,3.82169,2616.7,2616.1,4.09347]
[1727743059899,3.82169,2616.7,2616.1,4.16990692]
[1727743060228,3.82139,2616.9,2616.3,3.0]
[1727743060426,3.82139,2616.9,2616.4,0.682221]
[1727743060586,3.82139,2616.9,2616.5,3.0]
[1727743060783,4.63428,2617.1,2616.5,3.0]
[1727743060784,3.82108,2617.1,2616.6,0.271]
[1727743060997,0.7598,2617.5,2616.6,0.34743122]
[1727743060998,3.8208,2617.3,2616.6,0.34743122]
[1727743061201,3.8208,2617.3,2616.9,3.0]
[1727743061543,7.35,2617.6,2616.9,3.0]
[1727743061544,7.35,2617.6,2617.1,4.09201]
[1727743061742,4.57822,2617.9,2617.1,4.09201]
[1727743061743,3.81992,2617.9,2617.4,3.0]
[1727743062031,3.81992,2617.9,2617.3,3.0]
[1727743062234,3.81992,2617.9,2617.3,6.89711527]
[1727743062530,3.81972,2618.0,2617.6,0.271]
[1727743062732,3.81954,2618.2,2617.6,0.271]
[1727743063423,3.81974,2618.0,2617.6,0.271]
[1727743063851,3.81931,2618.3,2617.4,4.51023153]
[1727743064048,3.81931,2618.3,2617.6,3.8202]
[1727743064204,7.6387,2618.3,2617.7,3.0]
[1727743064407,3.81931,2618.3,2617.8,0.271]
[1727743065336,3.81954,2618.2,2617.8,0.271]
[1727743065491,3.81965,2618.1,2617.8,0.271]
[1727743065695,3.81965,2618.1,2617.5,4.04912315]
[1727743065890,3.81965,2618.1,2617.6,0.78696631]
[1727743066744,3.81889,2618.6,2618.0,3.81962]
[1727743066745,3.81897,2618.6,2618.0,3.81962]
[1727743067025,3.81892,2618.6,2618.1,0.271]
[1727743067145,3.8186,2618.8,2618.1,0.271]
[1727743067851,3.8186,2618.8,2618.2,3.0]
[1727743067852,3.81876,2618.7,2618.2,3.0]
[1727743068012,3.8186,2618.8,2618.2,3.0]
[1727743068013,3.81884,2618.6,2618.2,0.71668377]
[1727743068214,3.8186,2618.8,2618.2,0.07637953]
[1727743068412,3.8186,2618.8,2618.2,3.07637953]
[1727743068637,3.8187,2618.7,2618.2,3.07637953]
[1727743068838,3.8186,2618.8,2618.2,6.89569953]
[1727743069152,3.8186,2618.8,2618.2,3.0]
[1727743069320,3.8186,2618.8,2618.3,3.0]
[1727743069524,3.81873,2618.7,2618.3,3.0]
[1727743069820,3.8186,2618.8,2618.3,3.0]
[1727743070038,7.63725,2618.8,2618.3,3.0]
[1727743070260,3.81889,2618.6,2618.1,0.271]
[1727743070438,3.81913,2618.4,2617.9,3.0]
[1727743070725,3.81888,2618.6,2618.1,3.0]
[1727743070863,3.81902,2618.5,2618.1,3.0]
[1727743071063,3.81888,2618.6,2618.1,7.5015]
[1727743071269,3.81888,2618.6,2618.1,3.68197]
[1727743071450,3.81899,2618.5,2618.1,0.68197]
[1727743071794,3.81899,2618.5,2618.1,3.0]
[1727743072478,3.81899,2618.5,2617.9,3.0]
[1727743072685,7.63756,2618.7,2618.0,3.81961]
[1727743072837,7.63756,2618.7,2618.1,3.0]
[1727743073034,3.81876,2618.7,2618.2,0.07638525]
[1727743073295,3.81876,2618.7,2618.3,0.271]
[1727743074562,3.819,2618.5,2618.3,0.271]
[1727743074762,3.81928,2618.3,2618.0,0.271]
[1727743074949,3.81913,2618.4,2618.0,0.271]
[1727743076676,8.164,2619.0,2617.7,3.0]
[1727743076677,3.8195,2618.2,2617.7,3.0]
[1727743076873,3.8195,2618.2,2617.6,4.0912]
[1727743076874,3.8195,2618.2,2617.6,8.29341]
[1727743077062,3.8195,2618.2,2617.6,4.47321]
[1727743077261,3.81929,2618.3,2617.7,3.82013]
[1727743077974,3.81929,2618.3,2617.8,3.0]
[1727743078207,3.81929,2618.3,2617.7,3.07639356]
[1727743078380,3.81872,2618.7,2618.0,3.81969]
[1727743078588,3.81872,2618.7,2618.0,3.81962]
[1727743079076,3.81899,2618.5,2618.0,3.81962]
[1727743079752,3.81899,2618.5,2618.1,3.0]
[1727743079973,3.81899,2618.5,2618.2,0.271]
[1727743080438,3.81927,2618.3,2617.9,3.3]
[1727743080776,3.81942,2618.2,2617.8,0.271]
[1727743081083,3.81971,2618.0,2617.8,0.271]
[1727743081283,3.81942,2618.2,2617.5,0.271]
[1727743081284,3.81985,2617.9,2617.5,0.271]
[1727743081586,0.7538,2618.2,2617.5,0.271]
[1727743081587,4.57328,2618.2,2617.5,0.271]
[1727743081743,3.8205,2617.5,2617.1,0.271]
[1727743081973,0.457328,2618.1,2616.6,3.82167]
[1727743081974,3.82087,2617.2,2616.6,3.82167]
[1727743082202,4.39810952,2618.1,2616.6,3.82167]
[1727743082203,3.82064,2617.4,2616.8,3.82136]
[1727743082412,3.82064,2617.4,2616.8,3.89777902]
[1727743082598,3.82074,2617.3,2616.8,3.89777902]
[1727743082798,3.82064,2617.4,2616.8,0.07641902]
[1727743082799,3.82098,2617.2,2616.8,0.07641902]
[1727743083198,3.82098,2617.2,2616.8,3.07641902]
[1727743083530,3.82145,2616.9,2616.3,0.271]
[1727743083715,7.64167,2617.3,2616.6,7.64337]
[1727743083877,7.64167,2617.3,2616.6,3.82165]
[1727743083878,3.82103,2617.1,2616.6,3.82165]
[1727743084072,3.82109,2617.1,2616.7,0.45858966]
[1727743084818,3.82109,2617.1,2616.7,3.45858966]
[1727743085219,3.82081,2617.3,2616.8,0.271]
[1727743085379,3.8202,2617.7,2617.1,3.82089]
[1727743085580,25.19557384,2618.2,2617.2,3.271]
[1727743085581,3.94078152,2618.1,2617.2,3.271]
[1727743085823,3.82082,2617.3,2616.9,0.271]
[1727743085982,3.82103,2617.1,2616.9,0.271]
[1727743086517,3.82082,2617.3,2616.9,0.271]
[1727743086671,3.82155,2616.8,2616.6,0.271]
[1727743086878,3.82155,2616.8,2616.3,0.271]
[1727743087086,3.82171,2616.7,2616.3,0.271]
[1727743087485,0.382082,2617.3,2616.4,0.07643265]
[1727743087486,7.64252,2617.0,2616.4,0.07643265]
[1727743087804,3.82095,2617.2,2616.6,3.82163]
[1727743088130,3.82095,2617.2,2616.6,3.89804979]
[1727743088418,11.17064,2617.4,2616.7,3.0]
[1727743088730,3.82064,2617.4,2616.8,3.82137]
[1727743089012,3.82064,2617.4,2616.9,0.7585515]
[1727743089214,3.82064,2617.4,2617.0,0.271]
[1727743089374,3.82036,2617.6,2617.0,0.34741477]
[1727743089980,3.82036,2617.6,2617.0,4.16857477]
[1727743090304,7.64019,2617.8,2617.1,3.82101]
[1727743090505,3.82007,2617.8,2617.2,3.49324911]
[1727743090693,3.82017,2617.7,2617.2,3.49324911]
[1727743091118,3.82029,2617.6,2617.2,0.49324911]
[1727743091425,3.82029,2617.6,2617.0,3.271]
[1727743091426,3.82053,2617.5,2617.0,3.34741089]
[1727743091731,3.82016,2617.7,2617.2,3.07641089]
[1727743092021,3.82044,2617.5,2617.2,0.07641089]
[1727743092225,3.82016,2617.7,2617.2,3.07641089]
[1727743092527,11.16993,2617.9,2617.4,3.0]
[1727743092729,3.81973,2618.0,2617.5,4.1678275]
[1727743093016,3.81937,2618.3,2617.8,0.271]
[1727743093252,3.81909,2618.5,2617.9,0.07638761]
[1727743093440,0.8136,2618.8,2617.9,3.07638761]
[1727743093725,0.8136,2618.8,2617.8,1.0564903]
[1727743093726,3.81924,2618.4,2617.8,1.0564903]
[1727743093883,3.81924,2618.4,2617.8,0.3473863]
[1727743094240,3.81937,2618.3,2617.8,3.271]
[1727743094388,3.81943,2618.2,2617.8,0.271]
[1727743094927,3.81924,2618.4,2617.8,3.271]
[1727743095229,3.81924,2618.4,2617.9,0.709104]
[1727743095740,3.81924,2618.4,2617.8,3.271]
[1727743095932,3.81945,2618.2,2617.8,0.271]
[1727743096437,3.81924,2618.4,2617.8,0.271]
[1727743096602,7.63848,2618.4,2617.8,3.271]
[1727743096930,4.63218,2618.8,2617.8,3.271]
[1727743096931,3.81875,2618.7,2617.9,0.71675213]
[1727743097139,3.81875,2618.7,2617.8,3.271]
[1727743097140,3.81966,2618.1,2617.8,0.271]
[1727743099249,3.81935,2618.3,2617.5,3.82034]
[1727743099250,0.7505,2618.3,2617.5,0.271]
[1727743099551,7.64041,2617.7,2617.2,0.271]
[1727743099853,3.82015,2617.7,2617.2,0.680192]
[1727743100720,3.82015,2617.7,2617.2,3.680192]
[1727743101051,3.82004,2617.8,2617.2,7.500952]
[1727743101224,3.82004,2617.8,2617.2,7.501042]
[1727743101412,3.82016,2617.7,2617.3,1.1321962]
[1727743101943,3.82004,2617.8,2617.3,1.1321962]
[1727743102147,3.82004,2617.8,2617.3,4.9529162]
[1727743102451,3.82004,2617.8,2617.3,1.1321962]
[1727743102607,3.82023,2617.7,2617.3,1.1321962]
[1727743103011,4.62164,2617.7,2616.9,0.271]
[1727743103258,4.62164,2617.7,2616.5,0.271]
[1727743103259,3.82147,2616.8,2616.5,0.271]
[1727743103755,3.82124,2617.0,2616.5,0.271]
[1727743103949,7.35,2617.4,2616.5,0.271]
[1727743103950,3.82077,2617.3,2616.7,3.8216]
[1727743104254,3.82008,2617.8,2617.0,0.271]
[1727743104412,3.82008,2617.8,2617.3,3.0]
[1727743104836,3.82022,2617.7,2617.3,3.0]
[1727743105036,11.94585,2618.2,2617.1,3.0]
[1727743105233,3.82025,2617.7,2617.1,3.07641275]
[1727743105477,3.82,2617.8,2617.1,3.07641275]
[1727743105785,3.82027,2617.7,2617.1,6.89738275]
[1727743106274,3.82,2617.8,2617.2,3.82085]
[1727743106475,3.82019,2617.7,2617.3,3.0]
[1727743106862,7.63958,2618.0,2617.3,0.76613403]
[1727743107092,7.63958,2618.0,2617.4,3.8205]
[1727743107093,3.81976,2618.0,2617.4,3.8205]
[1727743107256,3.81976,2618.0,2617.5,3.0]
[1727743107257,3.81988,2617.9,2617.5,3.0]
[1727743107587,3.82,2617.8,2617.4,0.07640374]
[1727743107797,3.82015,2617.7,2617.4,1.140768]
[1727743107979,3.82031,2617.6,2617.3,3.0]
[1727743108326,3.82031,2617.6,2617.0,7.91316]
[1727743108327,3.8206,2617.4,2617.0,0.271]
[1727743108802,7.6413,2617.4,2617.0,0.271]
[1727743109000,7.6413,2617.4,2616.6,3.82166]
[1727743109001,3.82114,2617.1,2616.2,3.82225]
[1727743109153,3.82114,2617.1,2615.5,7.91865688]
[1727743109154,3.82093,2617.2,2616.3,0.34743122]
[1727743109354,4.70928152,2617.6,2616.7,3.82152]
[1727743109355,3.82073,2617.3,2616.7,3.82152]
[1727743109581,3.82073,2617.3,2616.9,0.271]
[1727743109915,3.94078152,2617.9,2616.9,4.16871891]
[1727743109916,3.82052,2617.5,2616.9,4.16871891]
[1727743110060,3.82011,2617.8,2617.0,3.82108]
[1727743110398,3.82065,2617.4,2616.9,3.271]
[1727743110563,0.7709,2617.9,2616.9,3.271]
[1727743110564,3.82019,2617.7,2617.0,0.7856765]
[1727743110769,3.82019,2617.7,2617.2,3.0]
[1727743111159,3.82036,2617.6,2617.1,3.0]
[1727743111372,3.82053,2617.5,2617.1,3.0]
[1727743111589,3.82053,2617.5,2617.0,0.7856765]
[1727743111886,3.82053,2617.5,2617.1,0.79543797]
[1727743112108,3.82105,2617.1,2616.6,0.271]
[1727743112312,3.94078152,2617.8,2616.6,0.271]
[1727743112313,3.82076,2617.3,2616.6,0.271]
[1727743112515,3.82121,2617.0,2616.6,0.271]
[1727743113020,3.82121,2617.0,2616.2,3.82225]
[1727743113021,3.82161,2616.7,2616.3,0.271]
[1727743113521,3.82162,2616.7,2616.3,0.271]
[1727743114696,3.82093,2617.2,2615.9,0.271]
[1727743114697,3.82204,2616.4,2615.9,0.271]
[1727743114906,0.7866,2616.5,2615.9,0.271]
[1727743115066,3.82257,2616.1,2615.6,0.271]
[1727743115698,3.82276,2616.0,2615.6,0.271]
[1727743116097,3.8224,2616.2,2615.6,4.09421]
[1727743116314,3.8224,2616.2,2615.6,4.885978]
[1727743116863,3.82212,2616.4,2615.7,3.82305]
[1727743117112,7.35,2616.6,2615.8,3.8229]
[1727743117113,11.17183,2616.6,2615.8,3.8229]
[1727743117268,3.82228,2616.3,2615.7,3.0]
[1727743117467,3.82213,2616.4,2615.8,0.7885868]
[1727743117671,3.82213,2616.4,2615.8,3.82279]
[1727743118273,11.1718,2616.6,2616.0,3.0]
[1727743118274,3.82191,2616.5,2616.0,3.0]
[1727743119312,3.82191,2616.5,2616.0,6.82261]
[1727743119686,3.82191,2616.5,2616.0,3.0]
[1727743119885,3.82191,2616.5,2616.1,0.682267]
[1727743120088,3.82238,2616.2,2615.8,3.0]
[1727743120427,3.82238,2616.2,2615.6,3.271]
[1727743120593,3.82238,2616.2,2615.6,7.09421]
[1727743120925,11.29078152,2616.9,2615.2,0.07645432]
[1727743120926,3.82303,2615.8,2615.2,0.271]
[1727743121130,0.7509,2616.1,2615.3,3.8236]
[1727743121131,3.82268,2616.0,2615.3,3.8236]
[1727743121329,3.82301,2615.8,2615.2,4.504271]
[1727743122343,3.82301,2615.8,2615.3,3.0]
[1727743122490,3.82301,2615.8,2615.3,4.1328131]